Cogmind - Beta 10.1 --- EXPLORER MODE // 2020.10.14 @ 16:38:51 Player: Luigi Panache Result: Self-destructed Performance ------------- Evolutions (2) 1000 Regions Visited (5) 1000 Robots Destroyed (32) 160 Value Destroyed (701) 701 Prototype IDs (23) 460 Alien Tech Used (0) 0 Bonus (300) 300 TOTAL SCORE: 3621 Bonus ------- Aligned with FarCom 300 Cogmind --------- Core Integrity 541/550 Matter 224/300 Energy 160/160 System Corruption 0% Temperature Cool (0) Movement Walking (120) Location -8/Materials Parts ------- > --- POWER (1) -------- Light Nuclear Core > --- PROPULSION (4) --- Improved Carbon-fiber Leg Improved Carbon-fiber Leg Improved Carbon-fiber Leg Improved Carbon-fiber Leg > --- UTILITY (5) ------ Improved Heat Sink Improved Heat Sink Large Storage Unit Large Storage Unit Long-range Terrain Scanner > --- WEAPON (2) ------- Firepult > --- INVENTORY (16) --- Ion Engine Deuterium Engine Medium Storage Unit Medium Storage Unit Medium Storage Unit Medium Storage Unit Long-range Terrain Scanner Long-range Terrain Scanner Long-range Terrain Scanner Light Armor Plating Light Cannon Shock Bomb Launcher Rocket Launcher Rocket Launcher Rocket Launcher Great Maul Peak State ------------ > --- POWER ------------ Light Nuclear Core > --- PROPULSION ------- Improved Carbon-fiber Leg Improved Carbon-fiber Leg Improved Carbon-fiber Leg Improved Carbon-fiber Leg > --- UTILITY ---------- Improved Heat Sink Improved Heat Sink Large Storage Unit Large Storage Unit Long-range Terrain Scanner > --- WEAPON ----------- Firepult > --- INVENTORY -------- Ion Engine Deuterium Engine Medium Storage Unit Medium Storage Unit Medium Storage Unit Medium Storage Unit Sensor Array Long-range Terrain Scanner Long-range Terrain Scanner Long-range Terrain Scanner Light Armor Plating Light Cannon Shock Bomb Launcher Rocket Launcher Rocket Launcher Rocket Launcher [Rating: 54] Favorites ----------- Power Ion Engine Engine Ion Engine Power Core Light Nuclear Core Propulsion Light Treads Treads Light Treads Leg Improved Carbon-fiber Leg Wheel Wheel Utility Large Storage Unit Device Improved Heat Sink Storage Large Storage Unit Processor Signal Interpreter Weapon Assault Rifle Energy Cannon Firepult Ballistic Gun Assault Rifle Launcher Rocket Launcher Build | -11 -10 -10 -10 -9 -8 ------- Run | Scr Mat Min Exi Min Mat Slots Evolved 5 | . 1 . . . 4 Power . | . . . . . . Propulsion 2 | . . . . . 2 Utility 3 | . 1 . . . 2 Weapon . | . . . . . . Parts Attached 35 | 10 8 2 2 2 11 Power 4 | 1 . . . 2 1 Engine 2 | 1 . . . 1 . Core 2 | . . . . 1 1 Reactor . | . . . . . . Propulsion 13 | 5 2 . . . 6 Treads 1 | 1 . . . . . Leg 6 | 2 . . . . 4 Wheel 6 | 2 2 . . . 2 Hover . | . . . . . . Flight . | . . . . . . Utility 11 | 2 4 . 1 . 4 Device 6 | 1 . . 1 . 4 Storage 4 | 1 3 . . . . Processor 1 | . 1 . . . . Hackware . | . . . . . . Protection . | . . . . . . Artifact . | . . . . . . Weapon 7 | 2 2 2 1 . . Energy Gun . | . . . . . . Energy Cannon 1 | . . . 1 . . Ballistic Gun 4 | 2 2 . . . . Ballistic Cannon . | . . . . . . Launcher 2 | . . 2 . . . Special Weapon . | . . . . . . Impact Weapon . | . . . . . . Slashing Weapon . | . . . . . . Piercing Weapon . | . . . . . . Special Melee Weapon . | . . . . . . Unidentified Prototypes . | . . . . . . Parts Lost . | . . . . . . Power . | . . . . . . Propulsion . | . . . . . . Utility . | . . . . . . Weapon . | . . . . . . Highest Loss Streak . | . . . . . . Average Slot Usage (%) 91 | . 91 100 99 87 87 Engine 10 | . 12 12 12 12 2 Treads 10 | . 12 12 12 12 2 Leg 2 | . . . . . 21 Wheel 11 | . 12 12 12 12 8 Device 9 | . 8 . . 12 21 Storage 20 | . 15 25 25 25 16 Processor 5 | . 6 12 11 . . Energy Cannon 4 | . . . . 12 8 Ballistic Gun 8 | . 22 3 . . . Launcher 5 | . . 21 24 . . Naked Turns . | . . . . . . Heaviest Build 63 | 17 40 45 60 60 63 Greatest Support 72 | 26 16 10 10 10 72 Greatest Overweight (x) 5 | 3 3 4 5 5 1 Average Overweight (x) 2 | . 1 4 4 5 . Largest Inventory Capacity 16 | 8 16 16 16 16 16 Average Capacity 13 | 7 10 16 16 16 16 Most Carried 16 | 7 16 16 16 16 16 Average Carried 12 | 3 9 16 15 15 14 Final Capacity 16 | 8 16 16 16 16 16 Final Carried 16 | 7 16 16 15 16 16 Class Distribution -------------------- 89% | Hacker-Mutant 8% | Hacker-Skirmisher Dominant Class ---------------- Hacker-Mutant | -10/Materials Hacker-Mutant | -10/Mines Hacker-Mutant | -10/Exiles Hacker-Mutant | -9/Mines Hacker-Skirmisher | -8/Materials Resources | -11 -10 -10 -10 -9 -8 ----------- Run | Scr Mat Min Exi Min Mat Matter Collected 692 | 336 226 56 . 40 34 Remotely . | . . . . . . Salvage Created 1103 | 149 592 9 . 302 51 Parts 58 | 7 35 . . 13 3 Haulers Intercepted 1 | . 1 . . . . Recyclers Shooed 1 | . 1 . . . . Parts Field Recycled . | . . . . . . Retrieved Matter . | . . . . . . Parts Self-Destructed . | . . . . . . Prevented . | . . . . . . Kills | -11 -10 -10 -10 -9 -8 ------- Run | Scr Mat Min Exi Min Mat Combat Hostiles Destroyed 21 | . 9 2 . 9 1 Guns 9 | . 9 . . . . Cannons 4 | . . . . 3 1 AOE 6 | . . 2 . 4 . Classes Destroyed 10 | 2 4 1 . 2 1 Worker 3 | . 1 . . 2 . Tunneler 3 | 3 . . . . . Hauler 1 | . 1 . . . . Recycler 2 | 1 1 . . . . Watcher 2 | . 2 . . . . Swarmer 5 | . . . . 5 . Grunt 12 | . 9 . . 3 . Brawler 1 | . . . . 1 . Sentry 1 | . . . . . 1 Assembled 2 | . . 2 . . . Best Kill Streak 6 | 2 4 2 . 6 1 Combat Bots Only 5 | . 2 2 . 5 1 Max Kills in Single Turn 3 | 1 1 2 . 3 1 Gunslinging . | . . . . . . Exploded 2 | . . 2 . 2 . Melee . | . . . . . . Uniques/NPCs Destroyed . | . . . . . . Combat | -11 -10 -10 -10 -9 -8 -------- Run | Scr Mat Min Exi Min Mat Damage Taken 349 | . 222 35 . 74 18 Core 52 | . 40 . . 3 9 Absorbed by Shields . | . . . . . . Core Remaining (%) 91 | 100 . . . 82 . Volleys Fired 59 | 9 41 2 . 6 1 Largest 2 | 2 2 2 . 1 1 Hottest 250 | 40 40 66 . 250 250 Shots Fired 93 | 18 64 4 . 6 1 Gun 83 | 18 64 1 . . . Cannon 7 | . . . . 6 1 Launcher 3 | . . 3 . . . Special . | . . . . . . Kinetic 83 | 18 64 1 . . . Thermal 7 | . . . . 6 1 Explosive 3 | . . 3 . . . Electromagnetic . | . . . . . . Robot Hit Streak 22 | 16 22 4 . 7 11 Robot Miss Streak 2 | . 1 2 . 1 . Penetration Max . | . . . . . . Secondary Targets 1 | . 1 . . . . Max Gunslinging Chain 1 | . 1 . . . . Shots Hit Robots 76 | 16 53 2 . 4 1 Core Hits 50 | 6 28 2 . 13 1 Critical Hits . | . . . . . . Critical Kills . | . . . . . . Critical Parts Destroyed . | . . . . . . Melee Attacks . | . . . . . . Impact . | . . . . . . Slashing . | . . . . . . Piercing . | . . . . . . Sneak Attacks . | . . . . . . Combat Hostiles . | . . . . . . Follow-up Attacks . | . . . . . . Damage Inflicted 1523 | 181 607 175 . 495 65 Guns 803 | 181 607 15 . . . Cannons 188 | . . . . 139 49 Explosions 532 | . . 160 . 356 16 Melee . | . . . . . . Ramming . | . . . . . . Kinetic 803 | 181 607 15 . . . Thermal 560 | . . . . 495 65 Explosive 160 | . . 160 . . . Electromagnetic . | . . . . . . Impact . | . . . . . . Slashing . | . . . . . . Piercing . | . . . . . . Highest Corruption 1 | . 1 1 1 1 . Average Corruption 1 | . 1 1 1 1 . Corruption Purged . | . . . . . . Effects 5 | . 4 . 1 . . Message Errors 3 | . 3 . . . . Energy Discharges 1 | . 1 . . . . Data Loss (minor) 1 | . . . 1 . . Overload Shots . | . . . . . . Overflow Damage 9 | . . 9 . . . Projectiles . | . . . . . . Explosions 9 | . . 9 . . . Melee . | . . . . . . Knockbacks . | . . . . . . Impact . | . . . . . . Kinetic . | . . . . . . Secondary . | . . . . . . Self-Inflicted Damage 31 | . . . . 31 . Shots 4 | . . . . 4 . Rammed . | . . . . . . Targets Rammed . | . . . . . . Kicked . | . . . . . . Crushed . | . . . . . . Highest Temperature 479 | . 9 6 . 479 179 Average Temperature 143 | . 7 4 . 193 98 Received Heat Transfer 237 | . 198 . . 30 9 Effects 2 | . . . . 2 . Shutdowns 1 | . . . . 1 . Energy Bleed 1 | . . . . 1 . Siege Activations . | . . . . . . Robots Corrupted . | . . . . . . Combat Hostiles . | . . . . . . Parts Fried . | . . . . . . Impact Corruptions . | . . . . . . Robots Melted 2 | . . . . 2 . Combat Hostiles 2 | . . . . 2 . Parts Melted 7 | . . . . 4 3 Heat Transferred 2640 | . . . . 2400 240 Parts Sabotaged . | . . . . . . Parts Stolen . | . . . . . . Parts Stripped . | . . . . . . Power Chain Reactions . | . . . . . . Missiles Intercepted . | . . . . . . Alert | -11 -10 -10 -10 -9 -8 ------- Run | Scr Mat Min Exi Min Mat Peak Influence 252 | 20 252 25 . 242 49 Initial 25 | . 9 25 . . . Average 78 | 9 74 16 . 138 43 Maximum Alert Level 1 | . 1 . . 1 . Low Security (%) 84 | 100 89 100 . 60 100 Level 1 15 | . 10 . . 39 . Level 2 . | . . . . . . Level 3 . | . . . . . . Level 4 . | . . . . . . Level 5 . | . . . . . . High Security . | . . . . . . Max Security . | . . . . . . Squads Dispatched 2 | . 2 . . . . Investigation 2 | . 2 . . . . Extermination . | . . . . . . Reinforcement . | . . . . . . Assault . | . . . . . . Garrison . | . . . . . . Intercept . | . . . . . . Construction Impeded . | . . . . . . Haulers Reinforced . | . . . . . . Stealth | -11 -10 -10 -10 -9 -8 --------- Run | Scr Mat Min Exi Min Mat Distress Signals 1 | . 1 . . . . Communications Jammed . | . . . . . . Distress Signals . | . . . . . . Times Spotted 27 | . 15 3 . 8 1 Peak Tracking Total 3 | . 3 3 . 3 1 Tactical Retreats 4 | . 2 2 . . . Traps | -11 -10 -10 -10 -9 -8 ------- Run | Scr Mat Min Exi Min Mat Traps Triggered 3 | . 3 . . . . Indirectly . | . . . . . . Trap Hack Attempts . | . . . . . . Triggered . | . . . . . . Disarmed . | . . . . . . Reprogrammed . | . . . . . . Reused . | . . . . . . Traps Extracted . | . . . . . . Installed . | . . . . . . Triggered . | . . . . . . Machines | -11 -10 -10 -10 -9 -8 ---------- Run | Scr Mat Min Exi Min Mat Machines Disabled 4 | . 1 . . 3 . Max in Single Turn 3 | . 1 . . 3 . Garrison Access 1 | . . . . . 1 Machines Sabotaged . | . . . . . . Garrisons Compromised . | . . . . . . Overloaded Fab Kills . | . . . . . . Fab Network Shutdowns . | . . . . . . Hacking | -11 -10 -10 -10 -9 -8 --------- Run | Scr Mat Min Exi Min Mat Machines Accessed 14 | . 9 . 1 . 4 Terminals 9 | . 7 . . . 2 Fabricators . | . . . . . . Repair Stations 1 | . . . . . 1 Recycling Units 2 | . 2 . . . . Scanalyzers . | . . . . . . Garrison Access 1 | . . . . . 1 Total Hacks 33 | . 27 . 1 . 5 Successful 24 | . 18 . 1 . 5 Failed 9 | . 9 . . . . Catastrophic 1 | . 1 . . . . Database Lockouts . | . . . . . . Manual 26 | . 23 . 1 . 2 Terminals 24 | . 22 . . . 2 Fabricators . | . . . . . . Repair Stations 2 | . . . . . 2 Recycling Units 5 | . 5 . . . . Scanalyzers . | . . . . . . Garrison Access 1 | . . . . . 1 Terminal Hacks 12 | . 11 . 1 . . Part Schematic 4 | . 4 . . . . Terminal Index 1 | . 1 . . . . Fabricator Index 1 | . 1 . . . . Unreport Threat 1 | . 1 . . . . Transport Status 1 | . 1 . . . . Recall Investigation 2 | . 2 . . . . Hauler Manifests 1 | . 1 . . . . EX-Prototype ID Bank 1 | . . . 1 . . Fabricator Hacks . | . . . . . . Repair Station Hacks 2 | . . . . . 2 Scan Component 1 | . . . . . 1 Repair 1 | . . . . . 1 Recycling Unit Hacks 4 | . 4 . . . . Process 1 | . 1 . . . . Report Inventory 2 | . 2 . . . . Retrieve Components 1 | . 1 . . . . Scanalyzer . | . . . . . . Garrison Access Hacks 1 | . . . . . 1 Seal Access 1 | . . . . . 1 Unauthorized Hacks 5 | . 3 . . . 2 Terminals 5 | . 3 . . . 2 Botnet 5 | . 3 . . . 2 Fabricators . | . . . . . . Repair Stations . | . . . . . . Recycling Units . | . . . . . . Scanalyzers . | . . . . . . Garrison Access . | . . . . . . Data Cores Recovered . | . . . . . . Used . | . . . . . . Hacking Detections 8 | . 8 . . . . Full Trace Events 4 | . 4 . . . . Feedback Events . | . . . . . . Feedback Blocked . | . . . . . . Robot Schematics Acquired . | . . . . . . Robots Built . | . . . . . . Matter . | . . . . . . Time . | . . . . . . Total Robot Build Rating . | . . . . . . Part Schematics Acquired 4 | . 4 . . . . Parts Built . | . . . . . . Matter . | . . . . . . Time . | . . . . . . Total Part Build Rating . | . . . . . . Parts Repaired 1 | . . . . . 1 Time 32 | . . . . . 32 Parts Recycled . | . . . . . . Recycled Matter 131 | . 131 . . . . Retrieved Matter . | . . . . . . Retrieved Components 10 | . 10 . . . . Parts Scanalyzed . | . . . . . . Part Schematics Acquired . | . . . . . . Parts Damaged . | . . . . . . Bothacking | -11 -10 -10 -10 -9 -8 ------------ Run | Scr Mat Min Exi Min Mat Used RIF Installer . | . . . . . . Robots Hacked . | . . . . . . Non-combat . | . . . . . . Combat . | . . . . . . Robot Hacks Applied . | . . . . . . Relay Couplers Released . | . . . . . . Robots Rewired . | . . . . . . Allies Hacked . | . . . . . . Hacks Repelled . | . . . . . . Allies | -11 -10 -10 -10 -9 -8 -------- Run | Scr Mat Min Exi Min Mat Total Allies 2 | . . 2 . . . Largest Group 2 | . . 2 . . . Highest-Rated Group 38 | . . 38 . . . Highest-Rated Ally 31 | . . 31 . . . Total Orders . | . . . . . . Ally Attacks 1 | . . 1 . . . Total Damage 21 | . . 21 . . . Kills . | . . . . . . Allies Corrupted . | . . . . . . Allies Melted . | . . . . . . Intel | -11 -10 -10 -10 -9 -8 ------- Run | Scr Mat Min Exi Min Mat Robot Analysis Total . | . . . . . . Derelict Logs Recovered 1 | . . . . 1 . Drone Launches . | . . . . . . Drone Recoveries . | . . . . . . Exploration | -11 -10 -10 -10 -9 -8 ------------- Run | Scr Mat Min Exi Min Mat Turns Passed 2013 | 127 721 99 354 458 254 Spaces Moved 1460 | 74 538 76 290 319 163 Core 11 | 11 . . . . . Treads . | . . . . . . Legs 118 | 23 . . . . 95 Wheels 1331 | 40 538 76 290 319 68 Hover . | . . . . . . Flight . | . . . . . . Fastest Speed 50 | 50 90 120 120 130 103 Average Speed 112 | 109 96 120 120 130 112 Slowest Speed 200 | 200 110 120 130 130 120 Overloaded Moves . | . . . . . . Propulsion Burnouts . | . . . . . . Robots Hopped . | . . . . . . Cave-ins Triggered . | . . . . . . Exploration Rate (%) 39 | 3 64 21 72 63 13 Regions Visited 5 Branch Regions 3 Pre-discovered Areas 1 | . . . . 1 . Known Exits Taken 5 | 1 1 1 1 1 . Unknown Exits Taken . | . . . . . . Scrap Searched . | . . . . . . Spaces Dug . | . . . . . . Terrain Destroyed 71 | . . 20 . 48 3 Melee . | . . . . . . Projectile 2 | . . . . 1 1 AOE 69 | . . 20 . 47 2 Terrain Rammed . | . . . . . . Walls Destroyed . | . . . . . . Machines Disabled . | . . . . . . Actions | -11 -10 -10 -10 -9 -8 --------- Run | Scr Mat Min Exi Min Mat Total 1749 | 99 683 79 298 356 234 Wait 131 | . 72 . . 27 32 Move 1455 | 73 537 75 289 318 163 Hop . | . . . . . . Pick Up 41 | 6 16 . 2 2 15 Fast Attach 12 | 7 4 . . . 1 Attach 8 | . 1 . 2 . 5 Detach 3 | 1 . . 1 . 1 Swap 15 | 3 3 2 . 2 5 Drop 25 | . 9 . 4 1 11 Fire 59 | 9 41 2 . 6 1 Melee . | . . . . . . Ram . | . . . . . . Kick . | . . . . . . Crush . | . . . . . . Escape Stasis . | . . . . . . Rewire . | . . . . . . Trap . | . . . . . . Miscellaneous . | . . . . . . Route ------- -11/Scrapyard -10/Materials (discovered 2 exits: *Mat / *Min) -10/Mines -10/Exiles -9/Mines -8/Materials History --------- Turn | Location | Event 21 | -11/Scrapyard | Identified exit to Materials 21 | -11/Scrapyard | Discovered exit to Materials (range 16) 128 | -11/Scrapyard | Entered Materials 128 | -10/Materials | Evolved 1 slot: Utility x1 295 | -10/Materials | Identified exit to Mines 295 | -10/Materials | Discovered exit to Mines (range 7) 305 | -10/Materials | Build established: Hacker-Mutant 384 | -10/Materials | Identified exit to Materials 384 | -10/Materials | Discovered exit to Materials (range 5) 849 | -10/Materials | Entered Mines 862 | -10/Mines | Assembled infested the area 944 | -10/Mines | Deemed a non-threat by the Exiles lab entrance 944 | -10/Mines | Identified exit to Exiles 944 | -10/Mines | Discovered exit to Exiles (range 5) 948 | -10/Mines | Entered Exiles 980 | -10/Exiles | Met 8R-AWN 1001 | -10/Exiles | Met EX-HEX 1037 | -10/Exiles | Met EX-BIN 1062 | -10/Exiles | Aligned with FarCom system 1064 | -10/Exiles | Given EX-Vault access code 1091 | -10/Exiles | Opened EX-Vault 1101 | -10/Exiles | Found Firepult 1127 | -10/Exiles | Warned to stay clear of 0b10 Research branches 1159 | -10/Exiles | Met EX-DEC 1200 | -10/Exiles | Visited The Gauntlet 1283 | -10/Exiles | Identified exit to Mines 1283 | -10/Exiles | Discovered exit to Mines (range 14) 1302 | -10/Exiles | Left Exiles lab with Firepult 1302 | -10/Exiles | Entered Mines 1307 | -9/Mines | Met a Derelict bent on vengeance 1500 | -9/Mines | Identified exit to Materials 1500 | -9/Mines | Discovered exit to Materials (range 14) 1543 | -9/Mines | Learned location of Storage (-7) 1607 | -9/Mines | Learned Materials interactive machine intel 1613 | -9/Mines | Received a Rocket Launcher from a helpful Derelict 1760 | -9/Mines | Entered Materials 1760 | -8/Materials | Evolved 4 slots: Propulsion x2, Utility x2 1761 | -8/Materials | Loaded intel: 18 interactive machine locations 1952 | -8/Materials | Repaired Rocket Launcher 2014 | -8/Materials | Self-destructed Last Messages --------------- 01959_ Acquired Great Maul. 01960_ Dropped Sensor Array. 01962_ Acquired Rocket Launcher. 01988_ Connecting with Garrison Access... >>Seal Access door sealed. 02002_ Connecting with Terminal... >>Trojan(Botnet) Trojan loaded successfully. Testing... Terminal linked with 0 systems. Awaiting botnet instructions. 02008_ Connecting with Terminal... >>Trojan(Botnet) Trojan loaded successfully. Testing... Terminal linked with 1 system. Awaiting botnet instructions. 02009_ K-01 Serf collects debris. 02014_ Connecting with Terminal... Map ----- +----------------------------------------------------+ | ??????????????????????????#??????????????????????? | | ??????????????????????? ?????????? ??????????????? | | ?????#???#???????????????????#???????????????????? | | ??????????????????????????????????????????? ?????? | | ??????????????#??????????????????????????????????? | | ?????????????#?????? ? ??????????????????????????? | | ??????????????????????????????#??????????????????? | | ??????##????#???#????????????g???????????"""?????? | | ?#????#??#??????##? #??#??? ??????????? "Y"?????? | | ????#?????????????? #?? ?????????????????? ?????? | | ??????#??# ????? ?? # "???? ? ?????#????????????? | | ???????#???"""??? # #?T??? ? ??????#??????????? | | ?????????#?"R"????+ #?"??? ???????#??????? ?????? | | ??? ?????? "?"? ??# #????????"??? ?#????????????? | | ?? ??? ?#? ??? ??# +?????????????????????#?????? | | ?? ?????#?????????# #????? ?????????????????????? | | ???? ???????####+## ########+#??#??????????#????? | | ???????????? ! #########??????????? | | ?? ???????? ? ## #??????? | | ??? ????##+####### "T" ## "" #?#?#??# # | | ? ??????# # ## "G #????#?? # | | ????????# / # r""" ## "" #??????? # | | ???? ???# ! # """ = # #??????# # | | ??#?????# + """ # #?? ???# # | | ???###??# " " # + #?"""??# # | | ????????# "R" !# @ # #?"T"??# # | | ????????# """ ## ###"T"## ########??????+ # | | ???????############ #?#"""## # #????????# # | | ??#????#??????##### #?###### # #?? ?????# # | | ?????#??#?#???# = #??????# # #?##+##### # | | ??????##??????# = = #??""??# # #?# | | #??????#??#???# != #? """?# ## #### | | ??????????#?### #? ?S"?# ## | | ?????????????##!! + ???? # ## #######+### # | | ???????#???#??#!! # !???# ## #?????? ??# # | | ?????#????????##### ######?# ## ##?? ??? ?# # | | ????#??????####### ### ### # #????????# # | | ????#??#????# ! ##??"??? ##### | | ?????????#??# +???????????? | | ?#?????#????###+## ## ## ##???? ??????? | | ????# ???????????#######! !########???????????? | | ??????????"??"? ??#?#??#! !#??????????????????? | | ?????? ??"??"" ??????##!!! ##??????????????????? | | #??????????????????????########??????????????????? | | ?#???? ??????????#???#?????#?????????? ??????????? | | ?????????????##?????#????????????????#???????????? | | | | | | | | | +----------------------------------------------------+ Best States ------------- Heat Dissipation 59 Energy Generation 14 Energy Capacity 250 Matter Stores 300 Matter Capacity 300 Sight Range 16 Terrain Scan Range 24 Terrain Scan Density 10 Resistance: KI 35 Resistance: TH 35 Resistance: EX 35 Resistance: EM 35 Resistance: I 35 Resistance: S 35 Resistance: P 35 Evasion (%) 42 Offensive Hacking 20 Item Schematics ----------------- Med. Storage Unit | -10/Materials | Hacked Lrg. Storage Unit | -10/Materials | Hacked Grenade Launcher | -10/Materials | Hacked Hcp. Storage Unit | -10/Materials | Hacked Robot Schematics ------------------ None Fabricated ------------ Nothing Alien Tech Used ----------------- None Achievements -------------- None Challenges ------------ None Game ------ Seed ThunderResetProtomatter Manual? 0 Play Time 00:27:07 Cumulative 44.9 hours Start 2020.10.14 @ 16:11:03 End 2020.10.14 @ 16:38:51 Sessions 1 Manual Loads 0 Difficulty Explorer Special Mode None Game No. 33 Rogue 3 Adventurer 11 Explorer 19 Win Type - Total 2 Types 2/0/0/0/0/0/0/0/0 Lore% 30 Gallery% 47 Achievement% 38 Wizard Run 0 Options --------- ASCII 0 Keyboard 0 Movement Mouse Keybinds 0 Fullscreen 1 Font 18/Terminus Map View 76x50 Tactical HUD 1 Map Filters NONE Filters NONE Steam 1 RUN: df1f80bb-d0c4-4588-977e-ee9d2137ed46